fUSD/lending_fUSD_20241205
["ID","MTS","AMOUNT","RATE_DAILY","PERIOD"]
[344413765,1733422245924,-2270.8449665,0.000252,2]
[344413766,1733422246025,-1011.06372,0.000252,2]
[344413767,1733422246037,-443.406085,0.000252,2]
[344413770,1733422346956,1018.1,9.02e-05,10]
[344413788,1733423244131,-5307.63408097,6.94e-05,2]
[344413789,1733423244152,-2156.53356966,7e-05,2]
[344413790,1733423244173,-5046.53458349,7.295e-05,2]
[344413791,1733423244193,-58502.79445844,7.499e-05,2]
[344413817,1733423431849,-300.0,6e-05,2]
[344413819,1733423431859,-600.0,6.1e-05,2]
[344413821,1733423431869,-900.0,6.2e-05,2]
[344413823,1733423431879,-293.3501271,6.3e-05,2]
[344413825,1733423431908,-906.6498729,6.3e-05,2]
[344413826,1733423431917,-1500.0,6.4e-05,2]
[344413827,1733423431927,-300.0,6.5e-05,2]
[344413828,1733423431937,-300.0,6.6e-05,2]
[344413829,1733423431946,-300.0,6.7e-05,2]
[344413830,1733423431955,-300.0,6.8e-05,2]
[344413831,1733423431964,-400.0,6.9e-05,2]
[344413832,1733423431975,-305.0,6.93e-05,2]
[344413833,1733423431986,-500.0,6.973e-05,2]
[344413834,1733423431996,-150.0,6.998e-05,2]
[344413835,1733423432005,-238.31619556,6.999e-05,2]
[344413836,1733423432014,-48848.56891365,6.999e-05,2]
[344413837,1733423432023,-5086586.02809996,7e-05,2]
[344413838,1733423432040,-456.6349344,7e-05,2]
[344413839,1733423432062,-304.31401,7e-05,2]
[344413840,1733423432074,-443.98,7e-05,2]
[344413841,1733423432157,-27366.99210864,7e-05,2]
[344413842,1733423432168,-274518.85594383,7e-05,2]
[344413843,1733423432188,-800.4859381,7e-05,2]
[344413849,1733423437880,-196302.96393619,7e-05,2]
[344413850,1733423438040,-21530648.6766748,7e-05,2]
[344413851,1733423438119,-80246.83774923,7e-05,2]
[344413852,1733423438132,-29660.45913957,7e-05,2]
[344413853,1733423438211,-711920.93464316,7e-05,2]
[344413882,1733423439988,-7620.0,7e-05,2]
[344413883,1733423439999,-3634.40628234,7e-05,2]
[344413884,1733423440139,-1140.13648758,7e-05,2]
[344413885,1733423440151,-435.81249997,7e-05,2]
[344413887,1733423442918,-2442.2370964,7e-05,2]
[344413888,1733423442950,-716.44001999,7e-05,2]
[344413889,1733423442961,-400.0,7e-05,2]
[344413890,1733423443071,-4540.0,7e-05,2]
[344413891,1733423443081,-70923.88293006,7e-05,2]
[344413904,1733423450218,-410.74066123,7e-05,2]
[344413905,1733423450236,-10102.0,7e-05,2]
[344413906,1733423450440,-23972.49999999,7e-05,2]
[344413907,1733423450451,-6149.75117807,7e-05,2]
[344413908,1733423450463,-5377.74152843,7e-05,2]
[344413909,1733423450476,-3234.894002,7e-05,2]
[344413910,1733423450487,-3911.0,7e-05,2]
[344413911,1733423450510,-1513645.4420346,7e-05,2]
[344413912,1733423450521,-69287.06915775,7e-05,2]
[344413913,1733423450542,-359.10544269,7e-05,2]
[344413914,1733423450553,-5773.08,7e-05,2]
[344413915,1733423450585,-506.15,7e-05,2]
[344413927,1733423646270,-2500.0,6.9e-05,2]
[344413928,1733423646293,-209.42006845,6.973e-05,2]
[344413929,1733423646316,-500.0,6.973e-05,2]
[344413930,1733423646338,-280.21745732,6.973e-05,2]
[344413931,1733423646364,-460.10221665,6.973e-05,2]
[344413932,1733423646387,-150.0,6.982e-05,2]
[344413933,1733423646410,-150.0,6.999e-05,2]
[344413934,1733423646437,-85750.26025758,7e-05,2]
[344413935,1733423728682,-2500.0,6.9e-05,2]
[344413936,1733423728710,-8249.2,6.999e-05,2]
[344413937,1733423728735,-8249.2,6.999e-05,2]
[344413938,1733423728761,-1001.6,6.999e-05,2]
[344413939,1733423730308,-7247.6,6.999e-05,2]
[344413940,1733423730335,-8249.2,6.999e-05,2]
[344413941,1733423730360,-4503.2,6.999e-05,2]
[344413942,1733423731160,-3746.0,6.999e-05,2]
[344413943,1733423731187,-8249.2,6.999e-05,2]
[344413944,1733423731212,-8004.8,6.999e-05,2]
[344413945,1733423732048,-244.4,6.999e-05,2]
[344413946,1733423732081,-8249.2,6.999e-05,2]
[344413947,1733423732111,-8249.2,6.999e-05,2]
[344413948,1733423732139,-3257.2,6.999e-05,2]
[344413949,1733423732503,-4992.0,6.999e-05,2]
[344413950,1733423732527,-8249.2,6.999e-05,2]
[344413951,1733423732555,-6758.8,6.999e-05,2]
[344413952,1733423732856,-1490.4,6.999e-05,2]
[344413953,1733423732884,-8249.2,6.999e-05,2]
[344413954,1733423732910,-8249.2,6.999e-05,2]
[344413955,1733423732938,-2011.2,6.999e-05,2]
[344413956,1733423733234,-6238.0,6.999e-05,2]
[344413957,1733423733259,-8249.2,6.999e-05,2]
[344413958,1733423733284,-5512.8,6.999e-05,2]
[344413959,1733423733559,-2736.4,6.999e-05,2]
[344413960,1733423733584,-8249.2,6.999e-05,2]
[344413961,1733423733612,-8249.2,6.999e-05,2]
[344413962,1733423733640,-765.2,6.999e-05,2]
[344413963,1733423733944,-7484.0,6.999e-05,2]
[344413964,1733423733974,-8249.2,6.999e-05,2]
[344413965,1733423734004,-4266.8,6.999e-05,2]
[344413966,1733423736770,-3982.4,6.999e-05,2]
[344413967,1733423736798,-8249.2,6.999e-05,2]
[344413968,1733423736825,-7768.4,6.999e-05,2]
[344413969,1733423737123,-480.92,6.999e-05,2]
[344413970,1733423737156,-19519.08,7e-05,2]
[344413971,1733423737520,-20000.0,7e-05,2]
[344413972,1733423737828,-20000.0,7e-05,2]
[344413973,1733423738592,-20000.0,7e-05,2]
[344413974,1733423738973,-20000.0,7e-05,2]
[344413975,1733423739343,-20000.0,7e-05,2]
[344413976,1733423740578,-20000.0,7e-05,2]
[344413977,1733423741786,-20000.0,7e-05,2]
[344413978,1733423754842,-500.0,6.973e-05,2]
[344413979,1733423754875,-19500.0,7e-05,2]
[344413980,1733423769300,-3000.0,7e-05,2]
[344413981,1733423792517,-580.7553482,6.973e-05,2]
[344413982,1733423792549,-9419.2446518,7e-05,2]
[344413985,1733424396336,-150.0,6.288e-05,2]
[344413986,1733424396361,-1898.866,6.86e-05,2]
[344413987,1733424396386,-300.0,6.899e-05,2]
[344413988,1733424396411,-2500.0,6.9e-05,2]
[344413989,1733424396435,-818.0616,6.9e-05,2]
[344413990,1733424396459,-742.92378984,6.9e-05,2]
[344414008,1733424632130,-300.0,6.1e-05,2]
[344414009,1733424632139,-700.0,6.2e-05,2]
[344414010,1733424632149,-883.77918882,6.3e-05,2]
[344414011,1733424632160,-116.22081118,6.3e-05,2]
[344414012,1733424632169,-1400.0,6.4e-05,2]
[344414013,1733424632179,-1700.0,6.5e-05,2]
[344414014,1733424632188,-300.0,6.6e-05,2]
[344414015,1733424632197,-300.0,6.7e-05,2]
[344414016,1733424632206,-300.0,6.8e-05,2]
[344414017,1733424632215,-300.0,6.9e-05,2]
[344414018,1733424632224,-2500.0,6.9e-05,2]
[344414019,1733424632233,-500.0,6.973e-05,2]
[344414020,1733424632242,-501.15683084,6.973e-05,2]
[344414021,1733424632251,-500.0,6.973e-05,2]
[344414022,1733424632261,-299.37763607,6.986e-05,2]
[344414023,1733424632272,-150.0,6.986e-05,2]
[344414024,1733424632281,-37355.97276403,7e-05,2]
[344414025,1733424632302,-281.18255249,7e-05,2]
[344414026,1733424632317,-845.24217888,7e-05,2]
[344414027,1733424632339,-728.21096132,7e-05,2]
[344414028,1733424632350,-587.66878533,7e-05,2]
[344414029,1733424632363,-999.948,7e-05,2]
[344414030,1733424632374,-4029.70223122,7e-05,2]
[344414031,1733424632426,-179188.9568842,7e-05,2]
[344414032,1733424632438,-728.04199995,7e-05,2]
[344414033,1733424632449,-30957.23549227,7e-05,2]
[344414034,1733424632460,-21500.57335226,7e-05,2]
[344414041,1733424638072,-47920.5,7e-05,2]
[344414042,1733424638207,-1744.81416,7e-05,2]
[344414043,1733424638219,-21530648.6766748,7e-05,2]
[344414044,1733424638346,-146443.42519927,7e-05,2]
[344414056,1733424640119,-30393.666,7e-05,2]
[344414057,1733424640131,-29265.02769435,7e-05,2]
[344414062,1733424640647,-3934.3638943,7e-05,2]
[344414063,1733424640659,-913.69006756,7e-05,2]
[344414064,1733424640682,-784.71480711,7e-05,2]
[344414065,1733424640693,-302.37207,7e-05,2]
[344414067,1733424644979,-296.21242944,7e-05,2]
[344414068,1733424644998,-860.0,7e-05,2]
[344414069,1733424645013,-3968.53715496,7e-05,2]
[344414070,1733424645024,-2303.80644924,7e-05,2]
[344414073,1733424645958,-535.21291091,7e-05,2]
[344414079,1733424646089,-1319.3133608,7e-05,2]
[344414084,1733425175403,2000.0,5e-05,2]
[344414089,1733425622964,-200.0,0.00022728,120]
[344414090,1733425622991,-200.0,0.00023828,120]
[344414091,1733425623016,-100.0,0.00024,120]
[344414092,1733425623089,-200.0,0.00024,120]
[344414093,1733425623207,-500.0,0.00024,120]
[344414094,1733425623278,-36201.59569537,0.00024,120]
[344414095,1733425623354,-200.0,0.00024,120]
[344414096,1733425623424,-1298.90486599,0.00024,120]
[344414097,1733425623551,-11499.49943864,0.00024,120]
[344414098,1733425623578,-200.0,0.00024928,120]
[344414099,1733425623603,-14729.20646686,0.00025,120]
[344414100,1733425623682,-500.0,0.00025,120]
[344414101,1733425623752,-3611.79353314,0.00025,120]
[344414104,1733425754203,-200.0,6.3e-05,2]
[344414105,1733425754226,-500.0,6.4e-05,2]
[344414106,1733425754248,-800.0,6.5e-05,2]
[344414107,1733425754270,-1100.0,6.6e-05,2]
[344414108,1733425754292,-1173.277634,6.7e-05,2]
[344414110,1733425832249,-226.722366,6.7e-05,2]
[344414111,1733425832258,-76.741534,6.8e-05,2]
[344414112,1733425832270,-123.258466,6.8e-05,2]
[344414113,1733425832280,-2348.866,6.8e-05,2]
[344414114,1733425832289,-1102.73261869,6.86e-05,2]
[344414115,1733425832300,-716.42238131,6.86e-05,2]
[344414116,1733425832311,-241.50840923,6.9e-05,2]
[344414117,1733425832327,-258.49159077,6.9e-05,2]
[344414118,1733425832337,-2500.0,6.9e-05,2]
[344414119,1733425832346,-200.0,6.9e-05,2]
[344414120,1733425832355,-500.0,6.973e-05,2]
[344414121,1733425832366,-299.14284172,6.973e-05,2]
[344414122,1733425832375,-1214.84875748,6.999e-05,2]
[344414123,1733425832385,-46.01681003,6.999e-05,2]
[344414124,1733425832401,-1168.83194745,6.999e-05,2]
[344414125,1733425832410,-166.82133689,6.999e-05,2]
[344414126,1733425832419,-150.0,6.999e-05,2]
[344414127,1733425832429,-35469.17718714,7e-05,2]
[344414128,1733425832441,-10705.69639122,7e-05,2]
[344414129,1733425832457,-968.4675,7e-05,2]
[344414130,1733425832594,-9587.02033811,7e-05,2]
[344414131,1733425832606,-5483.58920946,7e-05,2]
[344414132,1733425832618,-950.65,7e-05,2]
[344414133,1733425832629,-148393.4237298,7e-05,2]
[344414134,1733425832650,-4580.00539533,7e-05,2]
[344414135,1733425832662,-6759.05916267,7e-05,2]
[344414136,1733425832673,-9985.788,7e-05,2]
[344414137,1733425835868,-3742.16071913,7e-05,2]
[344414193,1733425838204,-4777.25567692,7e-05,2]
[344414194,1733425838218,-16662.04074,7e-05,2]
[344414195,1733425838255,-256633.66454469,7e-05,2]
[344414196,1733425838328,-161970.45363012,7e-05,2]
[344414197,1733425838342,-1986.9,7e-05,2]
[344414198,1733425838355,-13223.14576808,7e-05,2]
[344414199,1733425838390,-2408.43009366,7e-05,2]
[344414200,1733425838403,-8853.0661566,7e-05,2]
[344414201,1733425838415,-3286.78126801,7e-05,2]
[344414202,1733425838428,-4019.14019142,7e-05,2]
[344414203,1733425838581,-487.75951224,7e-05,2]
[344414204,1733425838597,-2820.0,7e-05,2]
[344414213,1733425840655,-1203.84264,7e-05,2]
[344414214,1733425840672,-2006.2326302,7e-05,2]
[344414216,1733425840685,-2000.0,7e-05,2]
[344414219,1733425840699,-5024.0,7e-05,2]
[344414221,1733425840731,-1002.1011,7e-05,2]
[344414222,1733425840744,-577.46205938,7e-05,2]
[344414223,1733425840757,-2003.15107923,7e-05,2]
[344414224,1733425840785,-2061.44,7e-05,2]
[344414225,1733425840798,-8730.90792,7e-05,2]
[344414226,1733425840814,-408.8108682,7e-05,2]
[344414231,1733425844422,-300.0,6.973e-05,2]
[344414235,1733425844614,-200.0,6.973e-05,2]
[344414236,1733425844627,-9789.8304,7e-05,2]
[344414237,1733425844641,-19153.31247841,7e-05,2]
[344414238,1733425844655,-11182.94061826,7e-05,2]
[344414239,1733425844831,-5023.8,7e-05,2]
[344414241,1733425845001,-4408.12299925,7e-05,2]
[344414242,1733425845014,-296.13443335,7e-05,2]
[344414243,1733425845051,-300.81,7e-05,2]
[344414244,1733425845064,-30048.0,7e-05,2]
[344414245,1733425845076,-9084.72616888,7e-05,2]
[344414246,1733425845088,-4567.578374,7e-05,2]
[344414255,1733425846243,-2786.39997437,7e-05,2]
[344414262,1733425846428,-825.9582484,7e-05,2]
[344414263,1733425846470,-5009.5,7e-05,2]
[344414264,1733425846482,-621.95912787,7e-05,2]
[344414265,1733425846628,-2370.45912863,7e-05,2]
[344414282,1733426793825,157.98,4.61e-05,2]
[344414283,1733426816654,-300.0,5.819e-05,2]
[344414284,1733426816725,-2502.03,5.849e-05,2]
[344414285,1733426816800,-1043.06522694,5.899e-05,2]
[344414286,1733426816878,-694.05,5.899e-05,2]
[344414287,1733426816947,-300.0,5.929e-05,2]
[344414288,1733426817024,-23900.0,5.93e-05,2]
[344414289,1733426817098,-171.31,6.029e-05,2]
[344414290,1733426817169,-250.0,6.029e-05,2]
[344414291,1733426817245,-202.06,6.141e-05,2]
[344414292,1733426817320,-268.98,6.213e-05,2]
[344414293,1733426817392,-250.0,6.261e-05,2]
[344414294,1733426817464,-873.21,6.284e-05,2]
[344414295,1733426817539,-160.0,6.301e-05,2]
[344414296,1733426817611,-701.45,6.301e-05,2]
[344414297,1733426817681,-1244.23,6.328e-05,2]
[344414298,1733426817749,-200.0,6.349e-05,2]
[344414299,1733426817822,-420.0,6.521e-05,2]
[344414300,1733426817897,-160.0,6.535e-05,2]
[344414301,1733426817970,-701.45,6.535e-05,2]
[344414302,1733426818041,-489.0,6.63e-05,2]
[344414303,1733426818110,-160.0,6.768e-05,2]
[344414304,1733426818180,-701.45,6.768e-05,2]
[344414305,1733426818258,-1615.0,6.792e-05,2]
[344414306,1733426818337,-150.0,6.803e-05,2]
[344414307,1733426818411,-174.32635499,6.804e-05,2]
[344414308,1733426818484,-1832.27,6.804e-05,2]
[344414309,1733426818553,-3561.71064164,6.899e-05,2]
[344414310,1733426818627,-500.0,6.9e-05,2]
[344414311,1733426818700,-36960.9099,6.9e-05,2]
[344414312,1733426818770,-2500.0,6.9e-05,2]
[344414313,1733426818852,-299.733214,6.93e-05,2]
[344414314,1733426818933,-501.14363931,6.973e-05,2]
[344414315,1733426819004,-500.0,6.973e-05,2]
[344414316,1733426819085,-500.0,6.973e-05,2]
[344414317,1733426819165,-159.893135,6.973e-05,2]
[344414318,1733426819245,-159.93583931,6.973e-05,2]
[344414319,1733426819321,-199.82883579,6.973e-05,2]
[344414320,1733426819390,-500.0,6.973e-05,2]
[344414321,1733426819459,-226.77507902,6.973e-05,2]
[344414322,1733426819527,-157.49474061,6.973e-05,2]
[344414323,1733426819593,-171.88511774,6.973e-05,2]
[344414324,1733426819662,-500.0,6.973e-05,2]
[344414325,1733426819734,-159.89313467,6.973e-05,2]
[344414326,1733426819803,-154.89647357,6.973e-05,2]
[344414327,1733426819876,-268.98,6.989e-05,2]
[344414328,1733426819951,-1000.0,7e-05,2]
[344414329,1733426820025,-1000.0,7e-05,3]
[344414330,1733426820109,-14029312.50600429,7e-05,2]
[344414331,1733426820185,-413.9937261,7e-05,2]
[344414332,1733426820269,-1902.21937158,7e-05,2]
[344414333,1733426820351,-12893.29568372,7e-05,2]
[344414334,1733426820436,-160.0,7.001e-05,2]
[344414335,1733426820515,-701.45,7.001e-05,2]
[344414336,1733426820602,-587.0,7.174e-05,2]
[344414337,1733426820674,-160.0,7.234e-05,2]
[344414338,1733426820746,-701.45,7.234e-05,2]
[344414339,1733426820821,-604.71,7.346e-05,2]
[344414340,1733426820897,-150.245389,7.397e-05,2]
[344414341,1733426821335,-198.12,7.397e-05,2]
[344414342,1733426821403,-17015.8519486,7.4e-05,2]
[344414343,1733426821472,-988.91,7.437e-05,2]
[344414344,1733426821553,-988.91,7.439e-05,2]
[344414345,1733426821627,-988.91,7.441e-05,2]
[344414346,1733426821697,-988.91,7.443e-05,2]
[344414347,1733426821770,-988.91,7.445e-05,2]
[344414348,1733426821841,-988.91,7.447e-05,2]
[344414349,1733426821915,-988.91,7.449e-05,2]
[344414350,1733426821988,-988.91,7.451e-05,2]
[344414351,1733426822062,-988.91,7.452e-05,2]
[344414352,1733426822137,-988.91,7.454e-05,2]
[344414353,1733426822212,-988.91,7.456e-05,2]
[344414354,1733426822283,-988.91,7.458e-05,2]
[344414355,1733426822361,-988.91,7.46e-05,2]
[344414356,1733426822435,-988.91,7.462e-05,2]
[344414357,1733426822509,-988.91,7.464e-05,2]
[344414358,1733426822584,-988.91,7.466e-05,2]
[344414359,1733426822655,-988.91,7.468e-05,2]
[344414360,1733426822730,-988.91,7.47e-05,2]
[344414361,1733426822801,-988.91,7.472e-05,2]
[344414362,1733426822888,-988.91,7.474e-05,2]
[344414363,1733426822960,-255.0,7.483e-05,2]
[344414364,1733426823030,-4888.92400974,7.498e-05,2]
[344414365,1733426823103,-17927.17993503,7.499e-05,2]
[344414366,1733426823181,-500.0,7.521e-05,2]
[344414367,1733426823259,-2000.0,7.6e-05,2]
[344414368,1733426823331,-2000.0,7.6e-05,2]
[344414369,1733426823403,-4067.4171095,7.6e-05,2]
[344414370,1733426823480,-166.76,7.653e-05,2]
[344414371,1733426823556,-166.7,7.657e-05,2]
[344414372,1733426823630,-227.68807831,7.677e-05,2]
[344414373,1733426823702,-1023.42686588,7.677e-05,2]
[344414374,1733426823769,-200.0,7.677e-05,2]
[344414375,1733426823842,-200.0,7.678e-05,2]
[344414376,1733426823918,-575.67761206,7.678e-05,2]
[344414377,1733426823991,-200.0,7.678e-05,2]
[344414378,1733426824074,-9575.65174383,7.678e-05,2]
[344414379,1733426824151,-1364.5691545,7.678e-05,2]
[344414380,1733426824228,-219.50027113,7.678e-05,2]
[344414381,1733426824309,-200.0,7.678e-05,2]
[344414382,1733426824391,-200.0,7.678e-05,2]
[344414383,1733426824473,-242.86399259,7.678e-05,2]
[344414384,1733426824551,-767.57014941,7.678e-05,2]
[344414385,1733426824633,-200.0,7.678e-05,2]
[344414386,1733426824708,-200.0,7.678e-05,2]
[344414387,1733426824782,-200.0,7.678e-05,2]
[344414388,1733426824861,-3234.53429216,7.678e-05,2]
[344414389,1733426824943,-219.50027113,7.679e-05,2]
[344414390,1733426825015,-323.81865678,7.679e-05,2]
[344414391,1733426825097,-5750.28318606,7.679e-05,2]
[344414392,1733426825171,-200.0,7.679e-05,2]
[344414393,1733426825242,-1024.06693124,7.679e-05,2]
[344414394,1733426825312,-575.67761206,7.679e-05,2]
[344414395,1733426825399,-200.0,7.68e-05,2]
[344414396,1733426825488,-200.0,7.68e-05,2]
[344414397,1733426825564,-200.0,7.68e-05,2]
[344414398,1733426825636,-243.0158831,7.68e-05,2]
[344414399,1733426825709,-5750.28318606,7.68e-05,2]
[344414400,1733426825781,-227.68807831,7.681e-05,2]
[344414401,1733426825852,-342.31419677,7.681e-05,2]
[344414402,1733426825927,-203.30034248,7.681e-05,2]
[344414403,1733426825998,-200.0,7.681e-05,2]
[344414404,1733426826079,-200.0,7.681e-05,2]
[344414405,1733426826162,-324.02117746,7.681e-05,2]
[344414406,1733426826236,-2425.90071912,7.681e-05,2]
[344414407,1733426826305,-219.50027113,7.681e-05,2]
[344414408,1733426826382,-200.0,7.681e-05,2]
[344414409,1733426826454,-200.0,7.682e-05,2]
[344414410,1733426826527,-1023.42686588,7.682e-05,2]
[344414411,1733426826607,-1364.5691545,7.682e-05,2]
[344414412,1733426826693,-256.73564757,7.682e-05,2]
[344414413,1733426826768,-323.81865678,7.683e-05,2]
[344414414,1733426826846,-200.0,7.683e-05,2]
[344414415,1733426826928,-200.0,7.683e-05,2]
[344414416,1733426827001,-431.75820904,7.683e-05,2]
[344414417,1733426827075,-281.55591706,7.683e-05,2]
[344414418,1733426827147,-1024.06693124,7.683e-05,2]
[344414419,1733426827218,-271.0671233,7.683e-05,2]
[344414420,1733426827294,-575.67761206,7.683e-05,2]
[344414421,1733426827364,-227.68807831,7.684e-05,2]
[344414422,1733426827440,-324.02117746,7.684e-05,2]
[344414423,1733426827516,-431.75820904,7.684e-05,2]
[344414424,1733426827594,-576.03764882,7.684e-05,2]
[344414425,1733426827672,-200.0,7.684e-05,2]
[344414426,1733426827748,-431.75820904,7.684e-05,2]
[344414427,1733426827822,-200.0,7.684e-05,2]
[344414428,1733426827895,-219.50027113,7.684e-05,2]
[344414429,1733426827966,-200.0,7.684e-05,2]
[344414430,1733426828035,-227.68807831,7.684e-05,2]
[344414431,1733426828114,-256.73564757,7.684e-05,2]
[344414432,1733426828191,-200.0,7.684e-05,2]
[344414433,1733426828267,-200.0,7.684e-05,2]
[344414434,1733426828341,-200.0,7.684e-05,2]
[344414435,1733426828418,-200.0,7.684e-05,2]
[344414436,1733426828496,-200.0,7.684e-05,2]
[344414437,1733426828575,-323.81865678,7.684e-05,2]
[344414438,1733426828647,-1819.42553934,7.685e-05,2]
[344414439,1733426828724,-576.03764882,7.685e-05,2]
[344414440,1733426828798,-271.0671233,7.685e-05,2]
[344414441,1733426828866,-200.0,7.685e-05,2]
[344414442,1733426828943,-200.0,7.685e-05,2]
[344414443,1733426829030,-4312.71238954,7.685e-05,2]
[344414444,1733426829112,-431.75820904,7.685e-05,2]
[344414445,1733426829186,-576.03764882,7.685e-05,2]
[344414446,1733426829255,-9575.65174383,7.685e-05,2]
[344414447,1733426829329,-200.0,7.686e-05,2]
[344414448,1733426829404,-200.0,7.686e-05,2]
[344414449,1733426829483,-2425.90071912,7.686e-05,2]
[344414450,1733426829559,-200.0,7.686e-05,2]
[344414451,1733426829632,-200.0,7.686e-05,2]
[344414452,1733426829706,-1364.5691545,7.686e-05,2]
[344414453,1733426829778,-456.41892902,7.686e-05,2]
[344414454,1733426829852,-456.41892902,7.686e-05,2]
[344414455,1733426829927,-200.0,7.686e-05,2]
[344414456,1733426830002,-243.0158831,7.686e-05,2]
[344414457,1733426830077,-575.67761206,7.686e-05,2]
[344414458,1733426830151,-200.0,7.686e-05,2]
[344414459,1733426830232,-200.0,7.686e-05,2]
[344414460,1733426830312,-7667.04424808,7.686e-05,2]
[344414461,1733426830389,-200.0,7.686e-05,2]
[344414462,1733426830498,-2425.90071912,7.686e-05,2]
[344414463,1733426830576,-456.41892902,7.686e-05,2]
[344414464,1733426830656,-200.0,7.687e-05,2]
[344414465,1733426830740,-303.58410442,7.687e-05,2]
[344414466,1733426830816,-200.0,7.687e-05,2]
[344414467,1733426830893,-7667.04424808,7.687e-05,2]
[344414468,1733426830966,-200.0,7.687e-05,2]
[344414469,1733426831042,-303.58410442,7.687e-05,2]
[344414470,1733426831115,-256.73564757,7.687e-05,2]
[344414471,1733426831190,-3234.53429216,7.687e-05,2]
[344414472,1733426831257,-256.73564757,7.688e-05,2]
[344414473,1733426831334,-3234.53429216,7.688e-05,2]
[344414474,1733426831406,-200.0,7.688e-05,2]
[344414475,1733426831475,-576.03764882,7.688e-05,2]
[344414476,1733426831546,-432.02823662,7.688e-05,2]
[344414477,1733426831616,-200.0,7.688e-05,2]
[344414478,1733426831690,-200.0,7.688e-05,2]
[344414479,1733426831759,-7667.04424808,7.688e-05,2]
[344414480,1733426831834,-5750.28318606,7.688e-05,2]
[344414481,1733426831906,-271.0671233,7.688e-05,2]
[344414482,1733426831977,-9575.65174383,7.688e-05,2]
[344414483,1733426832052,-1364.5691545,7.688e-05,2]
[344414484,1733426832131,-767.57014941,7.688e-05,2]
[344414485,1733426832205,-200.0,7.688e-05,2]
[344414486,1733426832281,-7667.04424808,7.688e-05,2]
[344414487,1733426832685,-200.0,7.688e-05,2]
[344414488,1733426832759,-1023.42686588,7.688e-05,2]
[344414489,1733426832830,-200.0,7.689e-05,2]
[344414490,1733426832911,-200.0,7.689e-05,2]
[344414491,1733426832982,-200.0,7.689e-05,2]
[344414492,1733426833055,-323.81865678,7.689e-05,2]
[344414493,1733426833129,-323.81865678,7.689e-05,2]
[344414494,1733426833203,-242.86399259,7.689e-05,2]
[344414495,1733426833269,-281.55591706,7.689e-05,2]
[344414496,1733426833336,-200.0,7.689e-05,2]
[344414497,1733426833422,-324.02117746,7.689e-05,2]
[344414498,1733426833490,-1819.42553934,7.689e-05,2]
[344414499,1733426833557,-200.0,7.689e-05,2]
[344414500,1733426833625,-7667.04424808,7.689e-05,2]
[344414501,1733426833689,-1819.42553934,7.689e-05,2]
[344414502,1733426833753,-281.55591706,7.689e-05,2]
[344414503,1733426833821,-9575.65174383,7.689e-05,2]
[344414504,1733426833893,-767.57014941,7.69e-05,2]
[344414505,1733426833963,-242.86399259,7.69e-05,2]
[344414506,1733426834036,-767.57014941,7.69e-05,2]
[344414507,1733426834104,-575.67761206,7.69e-05,2]
[344414508,1733426834172,-281.55591706,7.69e-05,2]
[344414509,1733426834235,-1023.42686588,7.69e-05,2]
[344414510,1733426834303,-200.0,7.69e-05,2]
[344414511,1733426834368,-9575.65174383,7.69e-05,2]
[344414512,1733426834429,-200.0,7.69e-05,2]
[344414513,1733426834497,-1024.06693124,7.69e-05,2]
[344414514,1733426834563,-1819.42553934,7.69e-05,2]
[344414515,1733426834652,-431.75820904,7.69e-05,2]
[344414516,1733426834723,-767.57014941,7.69e-05,2]
[344414517,1733426834788,-243.0158831,7.69e-05,2]
[344414518,1733426834858,-5750.28318606,7.69e-05,2]
[344414519,1733426834930,-5750.28318606,7.691e-05,2]
[344414520,1733426834999,-219.50027113,7.691e-05,2]
[344414521,1733426835069,-200.0,7.691e-05,2]
[344414522,1733426835135,-324.02117746,7.691e-05,2]
[344414523,1733426835204,-324.02117746,7.691e-05,2]
[344414524,1733426835278,-200.0,7.691e-05,2]
[344414525,1733426835353,-200.0,7.691e-05,2]
[344414526,1733426835425,-200.0,7.691e-05,2]
[344414527,1733426835489,-200.0,7.691e-05,2]
[344414528,1733426835556,-200.0,7.691e-05,2]
[344414529,1733426835620,-1023.42686588,7.692e-05,2]
[344414530,1733426835689,-219.50027113,7.692e-05,2]
[344414531,1733426835755,-342.31419677,7.692e-05,2]
[344414532,1733426835822,-2425.90071912,7.692e-05,2]
[344414533,1733426835892,-4312.71238954,7.692e-05,2]